Cogmind - Beta 13 X1 @@@ ROGUE MODE // 2023.07.09 @ 10:56:28 Player: kasaphescent Result: Destroyed by QG-0NT(R) with Subdweller Machine Gun Performance ------------- Evolutions (0) 0 Regions Visited (2) 400 Robots Destroyed (4) 20 Value Destroyed (160) 160 Prototype IDs (0) 0 Alien Tech Used (0) 0 Bonus (0) 0 TOTAL SCORE: 580 Bonus ------- None Cogmind --------- Core Integrity 0/250 Matter 234/300 Energy 125/125 System Corruption 0% Temperature Cool (0) Movement Rolling (95) Location -10/Subcaves Parts ------- > --- POWER (1) -------- Light Ion Engine > --- PROPULSION (2) --- Wheel Subdweller Monowheel > --- UTILITY (2) ------ (None) > --- WEAPON (2) ------- Light Assault Rifle > --- INVENTORY (5) ---- Subdweller Power Source Light Treads Myomer Leg Subdweller Monowheel Peak State ------------ > --- POWER ------------ Light Ion Engine > --- PROPULSION ------- Light Treads Compact Wheel > --- UTILITY ---------- Medium Storage Unit Terrain Scanner > --- WEAPON ----------- Riot Gun Light Assault Rifle > --- INVENTORY -------- Light Treads Aluminum Leg Wheel Subdweller Monowheel Makeshift Thermal Plating Scrap Shield [Rating: 10] Favorites ----------- Power Light Ion Engine Engine Light Ion Engine Propulsion Compact Wheel Treads Light Treads Wheel Compact Wheel Utility Medium Storage Unit Device Terrain Scanner Storage Medium Storage Unit Protection Scrap Shield Weapon Light Assault Rifle Energy Gun Medium Laser Ballistic Gun Light Assault Rifle Ballistic Cannon Battle Cannon Build | -11 -10 -10 ------- Run | Jun Mat Sub Slots Evolved . | . . . Power . | . . . Propulsion . | . . . Utility . | . . . Weapon . | . . . Parts Attached 14 | 6 2 6 Power 2 | 1 . 1 Engine 2 | 1 . 1 Core . | . . . Reactor . | . . . Propulsion 4 | 2 . 2 Treads 1 | 1 . . Leg . | . . . Wheel 3 | 1 . 2 Hover . | . . . Flight . | . . . Utility 4 | 1 2 1 Device 1 | . 1 . Storage 2 | 1 1 . Processor . | . . . Hackware . | . . . Protection 1 | . . 1 Artifact . | . . . Weapon 4 | 2 . 2 Energy Gun 2 | 1 . 1 Energy Cannon . | . . . Ballistic Gun 1 | 1 . . Ballistic Cannon 1 | . . 1 Launcher . | . . . Special Weapon . | . . . Impact Weapon . | . . . Slashing Weapon . | . . . Piercing Weapon . | . . . Special Melee Weapon . | . . . Unidentified Prototypes . | . . . Parts Lost 6 | . . 6 Power 1 | . . 1 Propulsion 2 | . . 2 Utility 1 | . . 1 Weapon 2 | . . 2 Highest Loss Streak 4 | . . 4 To Critical Strikes 1 | . . 1 Average Slot Usage (%) 91 | . 96 89 Engine 13 | . 14 13 Treads 11 | . 14 9 Wheel 17 | . 14 18 Device 11 | . 10 11 Storage 12 | . 14 11 Energy Gun 8 | . 14 5 Ballistic Gun 14 | . 14 14 Ballistic Cannon 2 | . . 3 Naked Turns . | . . . Heaviest Build 22 | 11 17 22 Greatest Support 36 | 16 16 36 Greatest Overweight (x) 1 | . 1 1 Average Overweight (x) . | . . . Largest Inventory Capacity 10 | 8 10 10 Average Capacity 9 | 7 9 9 Most Carried 10 | 6 7 10 Average Carried 6 | 2 6 7 Final Capacity 10 | 8 10 5 Final Carried 6 | 6 6 4 Class Distribution -------------------- 100% | Mutant Dominant Class ---------------- Mutant | -10/Materials Mutant | -10/Subcaves Resources | -11 -10 -10 ----------- Run | Jun Mat Sub Matter Collected 312 | 206 . 106 Remotely . | . . . Salvage Created 143 | . . 143 Parts 13 | . . 13 Haulers Intercepted . | . . . Recyclers Shooed . | . . . Parts Field Recycled . | . . . Retrieved Matter . | . . . Parts Self-Destructed . | . . . Prevented . | . . . Kills | -11 -10 -10 ------- Run | Jun Mat Sub Combat Hostiles Destroyed 4 | . . 4 Guns 2 | . . 2 Cannons 2 | . . 2 Classes Destroyed 1 | . . 1 Subdweller 4 | . . 4 Best Kill Streak 4 | . . 4 Combat Bots Only 4 | . . 4 Max Kills in Single Turn 1 | . . 1 Gunslinging . | . . . Exploded . | . . . Melee . | . . . Uniques/NPCs Destroyed . | . . . Combat | -11 -10 -10 -------- Run | Jun Mat Sub Damage Taken 984 | . . 984 Core 256 | . . 256 Absorbed by Shields . | . . . Core Remaining (%) 100 | 100 . . Volleys Fired 18 | . . 18 Largest 2 | . . 2 Hottest 70 | . . 70 Shots Fired 33 | . . 33 Gun 23 | . . 23 Cannon 10 | . . 10 Launcher . | . . . Special . | . . . Kinetic 28 | . . 28 Thermal . | . . . Explosive . | . . . Electromagnetic 5 | . . 5 Robot Hit Streak 30 | . . 30 Robot Miss Streak 1 | . . 1 Penetration Max . | . . . Secondary Targets . | . . . Shots Hit Robots 30 | . . 30 Core Hits 9 | . . 9 Critical Kills . | . . . Critical Parts Destroyed . | . . . Critical Strikes . | . . . Melee Attacks . | . . . Impact . | . . . Slashing . | . . . Piercing . | . . . Sneak Attacks . | . . . Combat Hostiles . | . . . Follow-up Attacks . | . . . Damage Inflicted 422 | . . 422 Guns 238 | . . 238 Cannons 184 | . . 184 Explosions . | . . . Melee . | . . . Ramming . | . . . Kinetic 321 | . . 321 Thermal . | . . . Explosive . | . . . Electromagnetic 101 | . . 101 Impact . | . . . Slashing . | . . . Piercing . | . . . Highest Corruption . | . . . Average Corruption . | . . . Corruption Purged . | . . . Corruption Blocked . | . . . Overload Shots . | . . . Overflow Damage . | . . . Projectiles . | . . . Explosions . | . . . Melee . | . . . Knockbacks 2 | . . 2 Impact . | . . . Kinetic 2 | . . 2 Secondary . | . . . Self-Inflicted Damage . | . . . Shots . | . . . Rammed . | . . . Targets Rammed . | . . . Kicked . | . . . Crushed . | . . . Highest Temperature 1 | . . 1 Average Temperature 1 | . . 1 Received Heat Transfer 78 | . . 78 Siege Activations . | . . . Robots Corrupted . | . . . Combat Hostiles . | . . . Parts Fried 1 | . . 1 Impact Corruptions . | . . . Robots Melted . | . . . Combat Hostiles . | . . . Parts Melted . | . . . Heat Transferred . | . . . Parts Sabotaged . | . . . Parts Stolen . | . . . Parts Stripped . | . . . Power Chain Reactions . | . . . Missiles Intercepted . | . . . Alert | -11 -10 -10 ------- Run | Jun Mat Sub Peak Influence . | . . . Initial . | . . . Average . | . . . Maximum Alert Level . | . . . Low Security (%) 100 | 100 100 . Level 1 . | . . . Level 2 . | . . . Level 3 . | . . . Level 4 . | . . . Level 5 . | . . . High Security . | . . . Max Security . | . . . Squads Dispatched . | . . . Investigation . | . . . Extermination . | . . . Reinforcement . | . . . Assault . | . . . Garrison . | . . . Intercept . | . . . Searches Triggered . | . . . Construction Impeded . | . . . Haulers Reinforced . | . . . Active Scanning Responses . | . . . Cargo Convoy Interrupts . | . . . Stealth | -11 -10 -10 --------- Run | Jun Mat Sub Distress Signals . | . . . Communications Jammed . | . . . Distress Signals . | . . . Times Spotted 10 | . . 10 Peak Tracking Total 6 | . . 6 Tactical Retreats . | . . . Traps | -11 -10 -10 ------- Run | Jun Mat Sub Traps Triggered . | . . . Indirectly . | . . . Trap Hack Attempts . | . . . Triggered . | . . . Disarmed . | . . . Reprogrammed . | . . . Reused 1 | . . 1 Traps Extracted . | . . . Installed 1 | . . 1 Triggered . | . . . Most Traps Carried 1 | . . 1 Machines | -11 -10 -10 ---------- Run | Jun Mat Sub Machines Disabled . | . . . Max in Single Turn . | . . . Machines Repaired . | . . . Machines Sabotaged . | . . . Overloaded Fab Kills . | . . . Hacking | -11 -10 -10 --------- Run | Jun Mat Sub Machines Accessed 1 | . 1 . Terminals 1 | . 1 . Fabricators . | . . . Repair Stations . | . . . Recycling Units . | . . . Scanalyzers . | . . . Garrison Access . | . . . Total Hacks 3 | . 3 . Successful 2 | . 2 . Failed 1 | . 1 . Catastrophic . | . . . Database Lockouts . | . . . Manual 2 | . 2 . Terminals 3 | . 3 . Fabricators . | . . . Repair Stations . | . . . Recycling Units . | . . . Scanalyzers . | . . . Garrison Access . | . . . Terminal Hacks 2 | . 2 . Part Schematic 1 | . 1 . Zone Layout 1 | . 1 . Fabricator Hacks . | . . . Repair Station Hacks . | . . . Recycling Unit Hacks . | . . . Scanalyzer . | . . . Garrison Access Hacks . | . . . Unauthorized Hacks . | . . . Terminals . | . . . Fabricators . | . . . Repair Stations . | . . . Recycling Units . | . . . Scanalyzers . | . . . Garrison Access . | . . . Data Cores Recovered . | . . . Used . | . . . Hacking Detections 1 | . 1 . Full Trace Events . | . . . Feedback Events . | . . . Feedback Blocked . | . . . Robot Schematics Acquired . | . . . Robots Built . | . . . Authchips . | . . . Time . | . . . Total Robot Build Rating . | . . . Part Schematics Acquired 1 | . 1 . Parts Built . | . . . Authchips . | . . . Time . | . . . Total Part Build Rating . | . . . Parts Repaired . | . . . Time . | . . . Parts Recycled . | . . . Recycled Matter . | . . . Retrieved Matter . | . . . Retrieved Components . | . . . Parts Scanalyzed . | . . . Part Schematics Acquired . | . . . Parts Damaged . | . . . Bothacking | -11 -10 -10 ------------ Run | Jun Mat Sub Used RIF Installer . | . . . Robots Hacked . | . . . Non-combat . | . . . Combat . | . . . Robot Hacks Applied . | . . . Relay Couplers Released . | . . . Fabnet Peak Effective % . | . . . Robots Rewired . | . . . Allies Hacked . | . . . Hacks Repelled . | . . . Allies | -11 -10 -10 -------- Run | Jun Mat Sub Total Allies . | . . . Largest Group . | . . . Highest-Rated Group . | . . . Highest-Rated Ally . | . . . Total Orders . | . . . Ally Attacks . | . . . Total Damage . | . . . Kills . | . . . Allies Corrupted . | . . . Allies Melted . | . . . Intel | -11 -10 -10 ------- Run | Jun Mat Sub Robot Analysis Total . | . . . Derelict Logs Recovered . | . . . Drone Launches . | . . . Drone Recoveries . | . . . Exploration | -11 -10 -10 ------------- Run | Jun Mat Sub Turns Passed 474 | 56 116 302 Spaces Moved 353 | 42 99 212 Core 1 | 1 . . Treads . | . . . Legs . | . . . Wheels 352 | 41 99 212 Hover . | . . . Flight . | . . . Fastest Speed 50 | 50 100 95 Average Speed 108 | 98 111 109 Slowest Speed 115 | 100 115 115 Overloaded Moves . | . . . Propulsion Burnouts . | . . . Robots Hopped . | . . . Cave-ins Triggered . | . . . Exploration Rate (%) 11 | 3 19 12 Regions Visited 2 Branch Regions 1 Pre-discovered Areas . | . . . Known Exits Taken . | . . . Unknown Exits Taken 2 | 1 1 . Scrap Searched 5 | . . 5 Spaces Dug . | . . . Terrain Destroyed . | . . . Melee . | . . . Projectile . | . . . AOE . | . . . Terrain Rammed . | . . . Walls Destroyed . | . . . Machines Disabled . | . . . Actions | -11 -10 -10 --------- Run | Jun Mat Sub Total 413 | 53 105 255 Wait 4 | . 3 1 Move 351 | 41 98 212 Hop . | . . . Pick Up 16 | 6 . 10 Fast Attach 10 | 6 2 2 Attach 4 | . . 4 Detach 2 | . 1 1 Swap . | . . . Drop 7 | . 1 6 Fire 18 | . . 18 Melee . | . . . Ram . | . . . Kick . | . . . Crush . | . . . Escape Stasis . | . . . Rewire . | . . . Trap 1 | . . 1 Miscellaneous . | . . . Route ------- -11/Junkyard -10/Materials -10/Subcaves History --------- Turn | Location | Event 32 | -11/Junkyard | Discovered new exit (range 16) 57 | -11/Junkyard | Entered Materials 90 | -10/Materials | Discovered new exit (range 16) 173 | -10/Materials | Entered Subcaves 283 | -10/Subcaves | Disturbed a concealed Subdweller 303 | -10/Subcaves | Build established: Mutant 321 | -10/Subcaves | Ambushed by swarm of Subdwellers 321 | -10/Subcaves | Ambushed by Subdwellers from Twisted Machinery 321 | -10/Subcaves | Ambushed by Subdwellers from Twisted Machinery 395 | -10/Subcaves | Core integrity fell below 50% 416 | -10/Subcaves | Lost 4 parts (1p1n2w) 449 | -10/Subcaves | Core integrity fell below 20% 475 | -10/Subcaves | Destroyed by QG-0NT(R) with Subdweller Machine Gun Last Messages --------------- 00358_ ZU-RW6(R) affixes Scrap Shield Fragment to Scrap Shield. 00363_ Sub. Power Source fried. 00363_ ZU-RW6(R) destroyed. 00371_ GL-O31(O) collects matter. 00372_ Riot Gun destroyed. 00377_ ID-VJO(R) affixes Scrap Shield Fragment to Scrap Shield. 00383_ Acquired Myomer Leg. 00385_ Lgt. Treads destroyed. 00386_ Acquired Sub. Power Source. 00389_ Acquired Sub. Monowheel. 00422_ Dropped Med. Storage Unit. 00424_ Acquired Sub. Monowheel. 00426_ Acquired Lgt. Treads. 00437_ Scrap Shield destroyed. 00452_ Com. Wheel destroyed. 00474_ Searching scrap... 00474_ Found Sub. Beam Cannon. 00474_ Found Scrap Shield. 00474_ Found 16 Matter. 00475_ Acquired 16 matter. Map ----- +----------------------------------------------------+ | ??????????????????????????????????????????## #### | | ???????????????????????????????????????#### # | | ??????????????????????????????????####### | | ??????????????????????????????????# | | ?????????????????????????????????## | | ????????????????????????????????## | | ???????????????????????????????## ## | | ???????????????????????????????# #### | | ???????????????????????????????# #??##### | | ???????????????????????????????## ##?????## | | ????????????????????????????????# #???##?###### | | ????????????????????????????????# #??## #?????## | | ?????????????????????????????#### #?## ##????# | | ????????????????????????###### ##R ### #???## | | ???????????????????????## ## RR #?# !##???# | | ???????????????????????# ###?# !!##### | | ??????????????????????## #???# = ## | | ?????????????????????## #???# | | ?????????????????????# ##??# | | ????????????????????## ##### ##### | | ????????????????????# ####????# | | ????????????????????### #?????## | | ??????????????????????## #?#### | | ???????????????????????# ######## ### | | ????????????????????#### ###??????? ## | | ????????????????????# @ #?????????? ## | | ????????????????????# ]! #?????#??????## | | ????????????????????# ????????????#### | | ????????????????????# ?????????????# # | | ????????????????????# #????????????##### | | ????????????????????# #######??????#?????????# | | ????????????????????# #####????????????#?????????? | | ????????????????????##???????????????????????????? | | ?????????????????????????????????????????????????# | | ?????????????????????????????????????????????????? | | ????????????????????????????????????????????#??### | | ?????????????????????????????????????#????????## # | | ?????????????????????????????????????#????#??## =" | | ??????????????????????????????????????????????##[& | | ????????????????????????????????????????##?#??#[|# | | ????????????????????????????????????????#?#???##%# | | ????????????????????????????????????????#??????### | | ??????????????????????????????????????#???##??#??# | | ??????????????????????????????????????#?????????## | | ????????????????????????????????????????????#????? | | ??????????????????????????????????????#?#????????? | | ????????????????????????????????????????????#?#??# | | ?????????????????????????????????????? #??????#?## | | ????????????????????????????????????????????#!###= | | ????????????????????????????????????????????#&&% ! | +----------------------------------------------------+ Best States ------------- Heat Dissipation 25 Energy Generation 10 Energy Capacity 125 Matter Stores 300 Matter Capacity 300 Sight Range 16 Terrain Scan Range 14 Terrain Scan Density 10 Armor Coverage 800 Evasion (%) 41 Recoil Reduction 1 Item Schematics ----------------- Hcp. Storage Unit | -10/Materials | Hacked Robot Schematics ------------------ None Fabricated ------------ Nothing Alien Tech Used ----------------- None Achievements -------------- None Challenges ------------ None Game ------ Seed ContainmentCentriumCasing Manual? 0 Play Time 00:10:33 Cumulative 374.4 hours Start 2023.07.09 @ 10:47:56 End 2023.07.09 @ 10:56:28 Sessions 1 Manual Loads 0 Difficulty Rogue Special Mode None Game No. 258 Rogue 258 Adventurer 0 Explorer 0 Win Type - Total 29 Types 25/0/3/1/0/0/0/0/0 Lore% 70 Gallery% 85 Achievement% 69 Wizard Run 0 Options --------- ASCII 0 Keyboard 1 Movement Numpad Keybinds 0 Fullscreen 2 Font 18/SmallcapsGlow Map View 76x50 Tactical HUD 1 Map Filters NONE Filters NONE Steam 1 RUN: b3472a96-a830-411d-9a36-0d5c233a04f2